[Event "GER-ch Youth U16W 2020"]
[Site "Willingen"]
[Date "2020.10.24"]
[Round "7.8"]
[White "Jacoby, Angelina"]
[Black "Doll, Rebecca"]
[Result "1/2-1/2"]
[ECO "D00"]
[WhiteElo "1630"]
[BlackElo "1808"]
[Annotator "NA RC"]
[PlyCount "153"]
[EventDate "2020.10.20"]
[EventType "swiss"]
[EventRounds "7"]
[EventCountry "GER"]
[SourceTitle "playchess.com"]
[Source "ChessBase"]
[SourceQuality "1"]
[TimeControl "40/5400+30:1800+30"]

1. d4 {[%emt 0:00:00]} d5 {[%emt 0:00:00]} 2. Bf4 {[%emt 0:00:00]} Nf6 {[%emt 0:00:00]} 3. e3 {[%emt 0:00:42]} e6 {[%emt 0:00:06]} 4. Nf3 {[%emt 0:00:13]} c5 {[%emt 0:00:14]} 5. c3 {[%emt 0:01:07]} Nc6 {[%emt 0:00:05]} 6. Nbd2 {[%emt 0:01:25]} cxd4 {[%emt 0:00:28]} 7. exd4 {[%emt 0:02:05] D02: 1 d4 d5 2 Nf3 sidelines, including 2...Nf6 3 g3 and 2...Nf6 3 Bf4.} Nh5 {[%emt 0:00:36]} 8. Bg5 {[%emt 0:01:43]} f6 {[%emt 0:01:55]} 9. Bh4 {[%emt 0:01:41]} (9. Be3 $5 {[%cal Rg2g4]} Bd6 10. g3 $14) 9... Be7 {[%emt 0:02:47]} 10. Be2 {[%emt 0:07:30]} Nf4 {[%emt 0:04:47] [#]} 11. O-O $146 {[%emt 0:00:37]} ({Predecessor:} 11. Bg3 Nh5 12. Qc2 g6 13. Bd3 Bd7 14. Rc1 O-O 15. O-O Kg7 16. Rfe1 Rc8 17. Qb1 Nxg3 18. hxg3 {0-1 (28) Balogh,M (1973)-Bohus,A (2246) Zalakaros 2018}) 11... O-O {[%emt 0:02:07]} 12. Ne1 {[%emt 0:03:52]} (12. Bg3 $11 {remains equal.} Nh5 13. Bh4) 12... e5 {[%emt 0:05:53]} 13. dxe5 {[%emt 0:07:54]} fxe5 {[%emt 0:01:39]} 14. Bg3 {[%emt 0:03:48]} Nxe2+ {[%emt 0:12:41]} 15. Qxe2 {[%emt 0:00:18]} Bd6 {[%emt 0:01:58]} 16. Nb3 {[%emt 0:05:28]} Qf6 {[%emt 0:05:55]} 17. Rd1 {[%emt 0:05:01]} Be6 {[%emt 0:03:06]} 18. Qb5 {[%emt 0:07:27]} Qf7 {[%emt 0:11:14]} 19. Nc5 {[%emt 0:03:52]} a6 {[%emt 0:05:50]} 20. Qb6 {[%emt 0:07:59]} Bc8 {[%emt 0:05:11]} 21. Ned3 {[%emt 0:04:31]} Bc7 {[%emt 0:02:29]} 22. Qb3 {[%emt 0:00:31]} b6 {[%emt 0:01:55]} 23. Na4 {[%emt 0:01:34]} Be6 {[%emt 0:01:30]} 24. Qc2 {[%emt 0:01:23]} Rac8 {[%emt 0:03:50]} 25. b3 {[%emt 0:09:08]} Qg6 {[%emt 0:07:09]} 26. Qe2 {[%emt 0:03:21]} Rce8 {[%emt 0:07:12]} 27. Nc1 {[%emt 0:05:09]} Ra8 {[%emt 0:02:36]} 28. Nd3 {[%emt 0:02:33]} Rfe8 {[%emt 0:01:30]} 29. f3 {[%emt 0:04:59]} Bf5 {[%emt 0:02:26]} 30. Nc1 {[%emt 0:00:44]} Qf7 {[%emt 0:00:41]} 31. Bf2 {[%emt 0:03:46]} b5 {[%emt 0:01:23]} 32. Nc5 {[%emt 0:00:37]} Ne7 {[%emt 0:02:05]} 33. N5d3 {[%emt 0:02:43]} Ng6 {[%emt 0:00:25]} 34. Nb4 {[%emt 0:01:19]} Nf4 {[%emt 0:02:17]} 35. Qd2 {[%emt 0:00:51]} Red8 {[%emt 0:00:33]} 36. Ne2 {[%emt 0:00:56]} a5 {[%emt 0:01:36]} 37. Nc2 {[%emt 0:00:51]} Ng6 {[%emt 0:00:33]} 38. Ng3 {[%emt 0:00:18]} Nf4 {[%emt 0:00:38]} 39. Nxf5 {[%emt 0:00:26]} Qxf5 {[%emt 0:00:02]} 40. Ne3 {[%emt 0:00:39]} Qg6 {[%emt 0:01:14]} 41. Bg3 {[%emt 0:04:32] [#]} Bb6 {[%emt 0:03:45]} ({Better is} 41... d4 $1 $17 {[%cal Rd4e3]} 42. cxd4 Bb6) 42. Kh1 {[%emt 0:00:15]} d4 {[%emt 0:08:42]} 43. cxd4 {[%emt 0:03:23]} (43. Ng4 $1 $11 {keeps the balance.} Nd5 44. cxd4 exd4 45. Ne5) 43... exd4 $11 {[%emt 0:05:06]} 44. Bxf4 {[%emt 0:03:22]} dxe3 {[%emt 0:00:06]} 45. Qe2 {[%emt 0:00:22]} Qe8 {[%emt 0:01:13]} 46. Rfe1 {[%emt 0:02:24]} Rac8 {[%emt 0:04:00]} 47. h3 {[%emt 0:02:35]} Rxd1 {[%emt 0:01:32]} 48. Rxd1 {[%emt 0:01:14]} Rc3 {[%emt 0:01:32]} 49. Kg1 {[%emt 0:02:14]} Qc8 {[%emt 0:04:18]} 50. Re1 {[%emt 0:03:33]} Qf5 {[%emt 0:01:24]} 51. Qb2 {[%emt 0:04:08]} e2+ {[%emt 0:01:36]} 52. Kh1 {[%emt 0:00:24]} Rc2 {[%emt 0:00:54]} 53. Qb1 {[%emt 0:00:42]} Qd3 {[%emt 0:00:32]} 54. Bg3 {[%emt 0:02:17]} Bd4 {[%emt 0:00:12]} 55. Kh2 {[%emt 0:00:56]} Qd2 {[%emt 0:01:23]} 56. a3 {[%emt 0:01:11]} Rb2 {[%emt 0:00:46]} 57. Qe4 {[%emt 0:01:12]} Qe3 {[%emt 0:00:47]} 58. Qd5+ {[%emt 0:00:58]} Kf8 {[%emt 0:00:14]} 59. Qxb5 {[%emt 0:00:40]} Rxb3 {[%emt 0:00:23]} 60. Qxe2 {[%emt 0:00:56]} Qxe2 {[%emt 0:00:11]} 61. Rxe2 {[%emt 0:00:06]} Kf7 {[%emt 0:00:20]} 62. Ra2 {[%emt 0:00:24]} a4 {[%emt 0:00:42]} 63. Bd6 {[%emt 0:00:43]} Ke6 {[%emt 0:00:02]} 64. Bb4 {[%emt 0:01:02]} Kd5 {[%emt 0:00:22]} 65. Kg3 {[%emt 0:01:12]} Rb2 {[%emt 0:01:43]} 66. Rxb2 {[%emt 0:00:37]} Bxb2 {[%emt 0:00:04]} 67. Kf2 {[%emt 0:00:27]} Kc4 {[%emt 0:00:01]} 68. Ke2 {[%emt 0:00:45]} Kb3 69. Kd3 Be5 {[%emt 0:00:48]} 70. Bf8 {[%emt 0:00:46]} Bb2 {[%emt 0:01:10]} 71. g3 {[%emt 0:00:43]} Ba1 {[%emt 0:00:37]} 72. f4 {[%emt 0:00:40]} Bb2 {[%emt 0:00:12]} 73. g4 {[%emt 0:00:20]} Ba1 {[%emt 0:00:04]} 74. f5 {[%emt 0:00:41]} Bf6 {[%emt 0:00:06]} 75. Bc5 {[%emt 0:00:43]} g6 {[%emt 0:01:08]} 76. fxg6 {[%emt 0:01:05]} hxg6 {[%emt 0:00:05]} 77. Ke4 {[%emt 0:01:10]} 1/2-1/2

[Event "GER-ch Youth U16W 2020"]
[Site "Willingen"]
[Date "2020.10.24"]
[Round "7.9"]
[White "Kalina, Lena"]
[Black "Schwegler, Jelena"]
[Result "1/2-1/2"]
[ECO "A16"]
[WhiteElo "1561"]
[BlackElo "1539"]
[Annotator "NA RC"]
[PlyCount "71"]
[EventDate "2020.10.20"]
[EventType "swiss"]
[EventRounds "7"]
[EventCountry "GER"]
[SourceTitle "playchess.com"]
[Source "ChessBase"]
[SourceQuality "1"]
[TimeControl "40/5400+30:1800+30"]

1. c4 {[%emt 0:00:00]} Nf6 {[%emt 0:01:53]} 2. Nc3 {[%emt 0:00:08]} g6 {[%emt 0:02:40]} 3. g3 {[%emt 0:00:34]} c5 {[%emt 0:06:38]} 4. Bg2 {[%emt 0:01:02]} Bg7 {[%emt 0:01:07]} 5. e4 {[%emt 0:00:59]} Nc6 {[%emt 0:01:57]} 6. Nge2 {[%emt 0:00:27]} O-O {[%emt 0:06:30]} 7. d3 {[%emt 0:01:52]} d6 {[%emt 0:01:18]} 8. O-O {[%emt 0:02:08]} Ne8 {[%emt 0:01:36]} 9. Be3 {[%emt 0:01:57]} f5 {[%emt 0:01:44]} 10. exf5 {[%emt 0:05:44]} Bxf5 {[%emt 0:01:21]} 11. d4 {[%emt 0:03:08]} cxd4 {[%emt 0:10:13]} 12. Nxd4 {[%emt 0:01:12]} Qd7 {[%emt 0:02:04]} 13. Nde2 {[%emt 0:12:54]} Bh3 {[%emt 0:02:21]} 14. Qd2 {[%emt 0:04:51]} Bxg2 {[%emt 0:03:37]} 15. Kxg2 {[%emt 0:00:08]} Qg4 {[%emt 0:00:48]} 16. f4 {[%emt 0:03:35]} Nf6 {[%emt 0:05:04]} 17. Rae1 {[%emt 0:08:35]} Rac8 {[%emt 0:08:05]} 18. b3 {[%emt 0:02:50]} a6 {[%emt 0:06:45]} 19. Bb6 {[%emt 0:06:53]} Kh8 {[%emt 0:02:34]} 20. Nd4 {[%emt 0:03:46]} Nxd4 {[%emt 0:03:08]} 21. Bxd4 {[%emt 0:00:32]} Rce8 {[%emt 0:00:50]} 22. Nd5 {[%emt 0:03:40]} e5 {[%emt 0:05:16]} 23. fxe5 {[%emt 0:08:43]} Nxd5 {[%emt 0:00:19]} 24. cxd5 {[%emt 0:01:15]} Rxf1 {[%emt 0:00:26]} 25. Rxf1 {[%emt 0:03:08]} Qe4+ {[%emt 0:00:53]} 26. Kg1 {[%emt 0:02:03]} Qxd5 {[%emt 0:00:50]} 27. Bc3 {[%emt 0:04:50]} Qxd2 {[%emt 0:01:19]} 28. Bxd2 {[%emt 0:00:14]} dxe5 {[%emt 0:01:24]} 29. Rf7 {[%emt 0:01:08]} Rd8 {[%emt 0:03:34]} 30. Bg5 {[%emt 0:01:35]} Rd1+ {[%emt 0:00:39]} 31. Kf2 {[%emt 0:00:37]} Ra1 {[%emt 0:00:34]} 32. Rxb7 {[%emt 0:01:10]} Rxa2+ {[%emt 0:00:34]} 33. Kf3 {[%emt 0:01:01]} Kg8 {[%emt 0:00:17]} 34. Rb8+ {[%emt 0:01:37]} Kf7 {[%emt 0:04:34]} 35. Rb7+ {[%emt 0:00:06]} Kf8 {[%emt 0:01:01]} 36. Rb8+ {[%emt 0:00:22]} 1/2-1/2

[Event "GER-ch Youth U16W 2020"]
[Site "Willingen"]
[Date "2020.10.24"]
[Round "7.10"]
[White "Dohon, Maria-Johanna"]
[Black "Cheredzhiyska, Iva"]
[Result "1-0"]
[ECO "D02"]
[WhiteElo "1536"]
[BlackElo "1674"]
[Annotator "NA RC"]
[PlyCount "111"]
[EventDate "2020.10.20"]
[EventType "swiss"]
[EventRounds "7"]
[EventCountry "GER"]
[SourceTitle "playchess.com"]
[Source "ChessBase"]
[SourceQuality "1"]
[TimeControl "40/5400+30:1800+30"]

1. d4 {[%emt 0:00:00]} d5 {[%emt 0:00:00]} 2. Nf3 {[%emt 0:00:00]} e6 {[%emt 0:00:34]} 3. g3 {[%emt 0:00:15]} Nf6 {[%emt 0:01:46]} 4. Bg2 {[%emt 0:00:37]} Be7 {[%emt 0:00:44]} 5. O-O {[%emt 0:00:53]} O-O {[%emt 0:00:25]} 6. c4 {[%emt 0:01:00]} c6 {[%emt 0:01:25]} 7. Qc2 {[%emt 0:02:16]} b6 {[%emt 0:02:34]} 8. Nbd2 {[%emt 0:02:00]} Bb7 {[%emt 0:01:40]} 9. Rd1 {[%emt 0:02:44]} Na6 {[%emt 0:03:15]} 10. a3 {[%emt 0:03:12]} c5 {[%emt 0:10:20]} 11. dxc5 {[%emt 0:06:16]} Nxc5 {[%emt 0:08:56]} 12. b4 {[%emt 0:04:39]} Nce4 {[%emt 0:03:42]} 13. Nxe4 {[%emt 0:03:59]} Nxe4 {[%emt 0:00:08]} 14. Bb2 {[%emt 0:03:39]} Rc8 {[%emt 0:05:12]} 15. Rac1 {[%emt 0:04:03]} Ba6 {[%emt 0:04:49]} 16. b5 {[%emt 0:06:09]} Bxb5 {[%emt 0:04:08]} 17. Qb1 {[%emt 0:12:34]} Bxc4 {[%emt 0:04:43]} 18. e3 {[%emt 0:02:31]} Bf6 {[%emt 0:06:06]} 19. Ne5 {[%emt 0:02:24]} Bxe5 {[%emt 0:09:23]} 20. Bxe5 {[%emt 0:00:10]} Nd6 {[%emt 0:02:28]} 21. Qb4 {[%emt 0:01:51]} Rc6 {[%emt 0:02:02]} 22. e4 {[%emt 0:08:57]} a5 {[%emt 0:01:02]} 23. Qa4 {[%emt 0:01:36]} Bb5 {[%emt 0:00:29]} 24. Qb3 {[%emt 0:00:56]} Rxc1 {[%emt 0:01:17]} 25. Rxc1 {[%emt 0:00:08]} Bc4 {[%emt 0:00:28]} 26. Qd1 {[%emt 0:00:56]} Nb7 {[%emt 0:03:20]} 27. Qg4 {[%emt 0:01:33]} g6 {[%emt 0:01:44]} 28. h4 {[%emt 0:00:49]} f5 {[%emt 0:00:54]} 29. exf5 {[%emt 0:00:56]} Rxf5 {[%emt 0:00:48]} 30. Bd4 {[%emt 0:00:45]} Nc5 {[%emt 0:00:58]} 31. h5 {[%emt 0:01:57]} Rg5 {[%emt 0:01:20]} 32. Qh4 {[%emt 0:01:41]} Nb7 {[%emt 0:04:33]} 33. hxg6 {[%emt 0:02:55]} Rxg6 {[%emt 0:00:44]} 34. Qf4 {[%emt 0:01:21]} Qg5 {[%emt 0:01:19]} 35. Qb8+ {[%emt 0:01:26]} Nd8 {[%emt 0:00:13]} 36. Be3 {[%emt 0:05:52]} Qf6 {[%emt 0:03:01]} 37. Bxb6 {[%emt 0:02:42]} Qf8 {[%emt 0:02:47]} 38. Qxd8 {[%emt 0:02:56]} a4 {[%emt 0:00:35]} 39. Qxf8+ {[%emt 0:02:07]} Kxf8 {[%emt 0:00:06]} 40. Bc5+ {[%emt 0:01:02]} Ke8 {[%emt 0:01:38]} 41. Rb1 {[%emt 0:34:06]} Bb3 {[%emt 0:30:27]} 42. Kf1 {[%emt 0:00:39]} Kd7 {[%emt 0:06:54]} 43. Ke2 {[%emt 0:02:08]} e5 {[%emt 0:00:00]} 44. Rh1 {[%emt 0:00:00]} Rg7 {[%emt 0:00:00]} 45. Rh6 {[%emt 0:00:00]} e4 {[%emt 0:00:00]} 46. Bh3+ {[%emt 0:00:00]} Kc7 {[%emt 0:00:00]} 47. Ke3 {[%emt 0:00:00]} Rf7 {[%emt 0:00:00]} 48. Bg4 {[%emt 0:00:00]} Bc4 {[%emt 0:00:00]} 49. Kd2 {[%emt 0:00:00]} Kb7 50. Kc3 {[%emt 0:00:00]} Ka8 {[%emt 0:00:00]} 51. Rb6 {[%emt 0:00:00]} Rc7 {[%emt 0:00:00]} 52. Kd4 {[%emt 0:00:00]} Rf7 {[%emt 0:00:00]} 53. Ke5 {[%emt 0:00:00]} Rc7 {[%emt 0:00:00]} 54. Kd6 {[%emt 0:00:00]} Rg7 {[%emt 0:00:03]} 55. Bd1 {[%emt 0:00:00]} Ka7 {[%emt 0:03:59]} 56. Rb4+ {[%emt 0:00:00]} 1-0